Cogmind - Beta 10.2 @@@ ROGUE MODE // 2022.03.03 @ 10:35:11 // Winter2019/RPGLIKE Player: Xeram Result: Destroyed by P-60 Hacker with Shock Rifle Performance ------------- Evolutions (3) 1500 Regions Visited (6) 1200 Robots Destroyed (35) 175 Value Destroyed (915) 915 Prototype IDs (3) 60 Alien Tech Used (0) 0 Bonus (22) 22 TOTAL SCORE: 3872 Bonus ------- High Alert Combat Kills 22 Cogmind --------- Core Integrity 0/1200 Matter 227/300 Energy 265/265 System Corruption 2% Temperature Cool (0) Movement Flying (37) Location -7/Factory Parts ------- > --- POWER (1) -------- Improved Ion Engine > --- PROPULSION (2) --- Cesium-ion Thruster Xenon Bombardment Thruster > --- UTILITY (5) ------ Signal Interpreter Improved Terrain Scanner Improved Targeting Computer Maneuvering Thrusters System Shield > --- WEAPON (2) ------- Minigun Great Axe > --- INVENTORY (0) ---- (None) Peak State ------------ > --- POWER ------------ Improved Ion Engine > --- PROPULSION ------- Cesium-ion Thruster Xenon Bombardment Thruster > --- UTILITY ---------- Signal Interpreter Improved Terrain Scanner Improved Targeting Computer Maneuvering Thrusters System Shield > --- WEAPON ----------- Minigun Great Axe > --- INVENTORY -------- (None) [Rating: 27] Favorites ----------- Power Light Ion Engine Engine Light Ion Engine Propulsion Wheel Wheel Wheel Hover Unit Hover Unit Flight Unit Cesium-ion Thruster Utility Signal Interpreter Device Terrain Scanner Processor Signal Interpreter Hackware System Shield Weapon Light Assault Rifle Energy Gun Beam Rifle Ballistic Gun Light Assault Rifle Slashing Weapon Great Axe Build | -11 -10 -10 -10 -9 -8 -7 ------- Run | Scr Mat Min Exi Min Mat Fac Slots Evolved 6 | 3 . . . . 2 1 Power . | . . . . . . . Propulsion 1 | 1 . . . . . . Utility 4 | 1 . . . . 2 1 Weapon 1 | 1 . . . . . . Parts Attached 25 | 5 3 . . 2 12 3 Power 4 | 1 . . . 2 1 . Engine 4 | 1 . . . 2 1 . Core . | . . . . . . . Reactor . | . . . . . . . Propulsion 9 | 2 1 . . . 5 1 Treads . | . . . . . . . Leg . | . . . . . . . Wheel 2 | 2 . . . . . . Hover 1 | . 1 . . . . . Flight 6 | . . . . . 5 1 Utility 6 | . 2 . . . 3 1 Device 3 | . 1 . . . 1 1 Storage . | . . . . . . . Processor 2 | . 1 . . . 1 . Hackware 1 | . . . . . 1 . Protection . | . . . . . . . Artifact . | . . . . . . . Weapon 6 | 2 . . . . 3 1 Energy Gun 1 | . . . . . 1 . Energy Cannon . | . . . . . . . Ballistic Gun 4 | 2 . . . . 2 . Ballistic Cannon . | . . . . . . . Launcher . | . . . . . . . Special Weapon . | . . . . . . . Impact Weapon . | . . . . . . . Slashing Weapon 1 | . . . . . . 1 Piercing Weapon . | . . . . . . . Special Melee Weapon . | . . . . . . . Unidentified Prototypes . | . . . . . . . Parts Lost 5 | . . . . 1 4 . Power 2 | . . . . 1 1 . Propulsion 1 | . . . . . 1 . Utility . | . . . . . . . Weapon 2 | . . . . . 2 . Highest Loss Streak 3 | . . . . 1 3 . Average Slot Usage (%) 89 | . 73 100 100 99 89 100 Engine 12 | . 14 14 14 13 10 10 Wheel 13 | . 27 14 14 14 . . Hover 5 | . . 14 14 14 . . Flight 8 | . . . . . 24 20 Device 10 | . . 14 14 14 12 16 Processor 12 | . 1 14 14 14 19 20 Hackware 1 | . . . . . 1 10 Ballistic Gun 24 | . 28 28 28 28 19 14 Naked Turns . | . . . . . . . Heaviest Build 16 | 5 6 6 6 6 14 16 Greatest Support 20 | 20 20 6 6 6 17 18 Greatest Overweight (x) 1 | . . . . . 1 . Average Overweight (x) . | . . . . . . . Largest Inventory Capacity . | . . . . . . . Average Capacity . | . . . . . . . Most Carried . | . . . . . . . Average Carried . | . . . . . . . Final Capacity . | . . . . . . . Final Carried . | . . . . . . . Class Distribution -------------------- 51% | Scout 30% | Mutant 11% | Hacker-Scout 3% | Skirmisher Dominant Class ---------------- Mutant | -10/Materials Scout | -10/Mines Scout | -10/Exiles Scout | -9/Mines Scout | -8/Materials Hacker-Scout | -7/Factory Resources | -11 -10 -10 -10 -9 -8 -7 ----------- Run | Scr Mat Min Exi Min Mat Fac Matter Collected 888 | 250 161 . . 118 359 . Remotely . | . . . . . . . Salvage Created 853 | . 246 . . 143 464 . Parts 79 | . 31 . . 23 25 . Haulers Intercepted 2 | . 2 . . . . . Recyclers Shooed 1 | . 1 . . . . . Parts Field Recycled . | . . . . . . . Retrieved Matter . | . . . . . . . Parts Self-Destructed . | . . . . . . . Prevented . | . . . . . . . Kills | -11 -10 -10 -10 -9 -8 -7 ------- Run | Scr Mat Min Exi Min Mat Fac Combat Hostiles Destroyed 31 | . 10 . . 9 12 . Guns 31 | . 10 . . 9 12 . Classes Destroyed 8 | . 5 . . 1 2 . Hauler 2 | . 2 . . . . . Recycler 1 | . 1 . . . . . Watcher 1 | . 1 . . . . . Swarmer 14 | . 6 . . 4 4 . Grunt 10 | . 4 . . 4 2 . Duelist 1 | . . . . 1 . . Sentry 5 | . . . . . 5 . Hunter 1 | . . . . . 1 . Best Kill Streak 7 | . 3 . . 4 7 . Combat Bots Only 7 | . 3 . . 4 7 . Max Kills in Single Turn 1 | . 1 . . 1 1 . Gunslinging . | . . . . . . . Exploded . | . . . . . . . Melee . | . . . . . . . Uniques/NPCs Destroyed . | . . . . . . . Combat | -11 -10 -10 -10 -9 -8 -7 -------- Run | Scr Mat Min Exi Min Mat Fac Damage Taken 2876 | . 457 289 . 397 1566 167 Core 2406 | . 368 248 . 306 1333 151 Absorbed by Shields . | . . . . . . . Redirected to Core 1616 | . 286 153 . 279 840 58 Core Remaining (%) 63 | 100 . . . 80 11 . Volleys Fired 185 | . 58 5 . 32 88 2 Largest 2 | . 2 2 . 2 2 1 Hottest 81 | . 40 40 . 40 81 25 Shots Fired 323 | . 116 10 . 64 131 2 Gun 323 | . 116 10 . 64 131 2 Cannon . | . . . . . . . Launcher . | . . . . . . . Special . | . . . . . . . Kinetic 318 | . 116 10 . 64 126 2 Thermal 5 | . . . . . 5 . Explosive . | . . . . . . . Electromagnetic . | . . . . . . . Robot Hit Streak 19 | . 8 16 . 19 19 . Robot Miss Streak 6 | . 6 . . 4 4 . Penetration Max . | . . . . . . . Secondary Targets 3 | . 2 . . . 1 . Max Gunslinging Chain 1 | . 1 . . . 1 . Shots Hit Robots 221 | . 71 10 . 40 94 6 Core Hits 79 | . 30 . . 20 29 . Critical Hits 2 | . 2 . . . . . Critical Kills 2 | . 2 . . . . . Critical Parts Destroyed . | . . . . . . . Melee Attacks 13 | . . . . . . 13 Impact . | . . . . . . . Slashing 13 | . . . . . . 13 Piercing . | . . . . . . . Sneak Attacks . | . . . . . . . Combat Hostiles . | . . . . . . . Follow-up Attacks . | . . . . . . . Damage Inflicted 2396 | . 549 91 . 316 1140 300 Guns 2096 | . 549 91 . 316 1140 . Cannons . | . . . . . . . Explosions 40 | . . . . . . 40 Melee 260 | . . . . . . 260 Ramming . | . . . . . . . Kinetic 2037 | . 549 91 . 316 1081 . Thermal 99 | . . . . . 59 40 Explosive . | . . . . . . . Electromagnetic . | . . . . . . . Impact . | . . . . . . . Slashing 260 | . . . . . . 260 Piercing . | . . . . . . . Highest Corruption 5 | . 5 5 5 5 . 2 Average Corruption 4 | . 4 5 5 5 . 1 Corruption Purged . | . . . . . . . Effects 19 | . 9 3 2 5 . . Message Errors 2 | . 1 . . 1 . . Matter Fused 5 | . 2 1 1 1 . . Heat Flow Errors 1 | . 1 . . . . . Energy Discharges 2 | . . 1 . 1 . . Parts Rejected 1 | . . . . 1 . . Data Loss (minor) 2 | . 1 . . 1 . . Data Loss (major) 1 | . . . 1 . . . Targeting Errors 5 | . 4 1 . . . . Overload Shots . | . . . . . . . Overflow Damage 52 | . . . . . . 52 Projectiles . | . . . . . . . Explosions . | . . . . . . . Melee 52 | . . . . . . 52 Knockbacks . | . . . . . . . Impact . | . . . . . . . Kinetic . | . . . . . . . Secondary . | . . . . . . . Self-Inflicted Damage . | . . . . . . . Shots . | . . . . . . . Rammed . | . . . . . . . Targets Rammed . | . . . . . . . Kicked . | . . . . . . . Crushed . | . . . . . . . Highest Temperature 247 | . 247 4 . 25 243 10 Average Temperature 30 | . 39 2 . 6 37 9 Received Heat Transfer 759 | . 180 . . 111 468 . Effects 2 | . . . . . 2 . Interference 2 | . . . . . 2 . Siege Activations . | . . . . . . . Robots Corrupted . | . . . . . . . Combat Hostiles . | . . . . . . . Parts Fried . | . . . . . . . Impact Corruptions . | . . . . . . . Robots Melted . | . . . . . . . Combat Hostiles . | . . . . . . . Parts Melted . | . . . . . . . Heat Transferred 198 | . . . . . 148 50 Parts Sabotaged . | . . . . . . . Parts Stolen . | . . . . . . . Parts Stripped . | . . . . . . . Power Chain Reactions . | . . . . . . . Missiles Intercepted . | . . . . . . . Alert | -11 -10 -10 -10 -9 -8 -7 ------- Run | Scr Mat Min Exi Min Mat Fac Peak Influence 455 | . 305 66 . 215 455 332 Initial 149 | . . 66 . . 5 149 Average 152 | . 163 66 . 82 225 218 Maximum Alert Level 2 | . 1 . . 1 2 1 Low Security (%) 68 | 100 62 100 . 97 38 56 Level 1 30 | . 37 . . 2 56 43 Level 2 1 | . . . . . 4 . Level 3 . | . . . . . . . Level 4 . | . . . . . . . Level 5 . | . . . . . . . High Security . | . . . . . . . Max Security . | . . . . . . . Squads Dispatched 5 | . 2 . . . 3 . Investigation 1 | . 1 . . . . . Extermination . | . . . . . . . Reinforcement 3 | . 1 . . . 2 . Assault . | . . . . . . . Garrison 1 | . . . . . 1 . Intercept . | . . . . . . . Construction Impeded . | . . . . . . . Haulers Reinforced . | . . . . . . . Stealth | -11 -10 -10 -10 -9 -8 -7 --------- Run | Scr Mat Min Exi Min Mat Fac Distress Signals 5 | . . . . . 4 1 Communications Jammed . | . . . . . . . Distress Signals . | . . . . . . . Times Spotted 63 | . 15 1 . 10 30 7 Peak Tracking Total 9 | . 3 1 . 4 9 3 Tactical Retreats 7 | . 1 . . 1 4 1 Traps | -11 -10 -10 -10 -9 -8 -7 ------- Run | Scr Mat Min Exi Min Mat Fac Traps Triggered 2 | . 2 . . . . . Indirectly . | . . . . . . . Trap Hack Attempts . | . . . . . . . Triggered . | . . . . . . . Disarmed . | . . . . . . . Reprogrammed . | . . . . . . . Reused . | . . . . . . . Traps Extracted . | . . . . . . . Installed . | . . . . . . . Triggered . | . . . . . . . Machines | -11 -10 -10 -10 -9 -8 -7 ---------- Run | Scr Mat Min Exi Min Mat Fac Machines Disabled 3 | . . . . . . 3 Max in Single Turn 3 | . . . . . . 3 Machines Sabotaged . | . . . . . . . Garrisons Compromised . | . . . . . . . Overloaded Fab Kills . | . . . . . . . Fab Network Shutdowns . | . . . . . . . Hacking | -11 -10 -10 -10 -9 -8 -7 --------- Run | Scr Mat Min Exi Min Mat Fac Machines Accessed 9 | . 4 . . . 3 2 Terminals 8 | . 4 . . . 3 1 Fabricators . | . . . . . . . Repair Stations . | . . . . . . . Recycling Units 1 | . . . . . . 1 Scanalyzers . | . . . . . . . Garrison Access . | . . . . . . . Total Hacks 23 | . 11 . . . 7 5 Successful 8 | . 3 . . . 2 3 Failed 15 | . 8 . . . 5 2 Catastrophic 4 | . 3 . . . 1 . Database Lockouts . | . . . . . . . Manual 10 | . 4 . . . 6 . Terminals 22 | . 11 . . . 7 4 Fabricators . | . . . . . . . Repair Stations . | . . . . . . . Recycling Units 1 | . . . . . . 1 Scanalyzers . | . . . . . . . Garrison Access . | . . . . . . . Terminal Hacks 7 | . 3 . . . 2 2 Part Schematic 1 | . . . . . 1 . Robot Analysis 2 | . 1 . . . 1 . Prototype ID Bank 1 | . . . . . . 1 Locate Traps 1 | . . . . . . 1 Registered Components 1 | . 1 . . . . . Registered Prototypes 1 | . 1 . . . . . Fabricator Hacks . | . . . . . . . Repair Station Hacks . | . . . . . . . Recycling Unit Hacks 1 | . . . . . . 1 Report Inventory 1 | . . . . . . 1 Scanalyzer . | . . . . . . . Garrison Access Hacks . | . . . . . . . Unauthorized Hacks . | . . . . . . . Terminals . | . . . . . . . Fabricators . | . . . . . . . Repair Stations . | . . . . . . . Recycling Units . | . . . . . . . Scanalyzers . | . . . . . . . Garrison Access . | . . . . . . . Data Cores Recovered . | . . . . . . . Used . | . . . . . . . Hacking Detections 8 | . 4 . . . 3 1 Full Trace Events 2 | . 2 . . . . . Feedback Events 1 | . 1 . . . . . Corruption 1 | . 1 . . . . . Feedback Blocked . | . . . . . . . Robot Schematics Acquired . | . . . . . . . Robots Built . | . . . . . . . Matter . | . . . . . . . Time . | . . . . . . . Total Robot Build Rating . | . . . . . . . Part Schematics Acquired 1 | . . . . . 1 . Parts Built . | . . . . . . . Matter . | . . . . . . . Time . | . . . . . . . Total Part Build Rating . | . . . . . . . Parts Repaired . | . . . . . . . Time . | . . . . . . . Parts Recycled . | . . . . . . . Recycled Matter . | . . . . . . . Retrieved Matter . | . . . . . . . Retrieved Components . | . . . . . . . Parts Scanalyzed . | . . . . . . . Part Schematics Acquired . | . . . . . . . Parts Damaged . | . . . . . . . Bothacking | -11 -10 -10 -10 -9 -8 -7 ------------ Run | Scr Mat Min Exi Min Mat Fac Used RIF Installer . | . . . . . . . Robots Hacked . | . . . . . . . Non-combat . | . . . . . . . Combat . | . . . . . . . Robot Hacks Applied . | . . . . . . . Relay Couplers Released . | . . . . . . . Robots Rewired . | . . . . . . . Allies Hacked . | . . . . . . . Hacks Repelled . | . . . . . . . Allies | -11 -10 -10 -10 -9 -8 -7 -------- Run | Scr Mat Min Exi Min Mat Fac Total Allies . | . . . . . . . Largest Group . | . . . . . . . Highest-Rated Group . | . . . . . . . Highest-Rated Ally . | . . . . . . . Total Orders . | . . . . . . . Ally Attacks . | . . . . . . . Total Damage . | . . . . . . . Kills . | . . . . . . . Allies Corrupted . | . . . . . . . Allies Melted . | . . . . . . . Intel | -11 -10 -10 -10 -9 -8 -7 ------- Run | Scr Mat Min Exi Min Mat Fac Robot Analysis Total 2 | . 1 . . . 1 . Derelict Logs Recovered 1 | . . . . 1 . . Drone Launches . | . . . . . . . Drone Recoveries . | . . . . . . . Exploration | -11 -10 -10 -10 -9 -8 -7 ------------- Run | Scr Mat Min Exi Min Mat Fac Turns Passed 1957 | 41 544 174 83 450 494 171 Spaces Moved 2152 | 44 451 239 126 512 516 264 Core 3 | 3 . . . . . . Treads . | . . . . . . . Legs . | . . . . . . . Wheels 469 | 41 428 . . . . . Hover 913 | . 23 239 126 512 13 . Flight 767 | . . . . . 503 264 Fastest Speed 37 | 50 65 65 65 65 37 37 Average Speed 58 | 77 79 65 65 65 38 37 Slowest Speed 120 | 80 80 65 65 65 120 37 Overloaded Moves . | . . . . . . . Propulsion Burnouts . | . . . . . . . Robots Hopped 10 | . . . . . 9 1 Cave-ins Triggered . | . . . . . . . Exploration Rate (%) 44 | 4 68 63 49 83 39 8 Regions Visited 6 Branch Regions 3 Pre-discovered Areas . | . . . . . . . Known Exits Taken 5 | . 1 1 1 1 1 . Unknown Exits Taken 1 | 1 . . . . . . Scrap Searched 1 | . . . . 1 . . Spaces Dug . | . . . . . . . Terrain Destroyed 20 | . . . . . . 20 Melee . | . . . . . . . Projectile . | . . . . . . . AOE 20 | . . . . . . 20 Terrain Rammed . | . . . . . . . Walls Destroyed . | . . . . . . . Machines Disabled . | . . . . . . . Actions | -11 -10 -10 -10 -9 -8 -7 --------- Run | Scr Mat Min Exi Min Mat Fac Total 2551 | 48 543 249 126 576 696 313 Wait 127 | . 15 5 1 13 63 30 Move 2126 | 43 450 238 125 511 497 262 Hop 10 | . . . . . 9 1 Pick Up . | . . . . . . . Fast Attach 21 | 5 3 . . 2 9 2 Attach . | . . . . . . . Detach . | . . . . . . . Swap 4 | . . . . . 3 1 Drop 9 | . 1 . . . 6 2 Fire 185 | . 58 5 . 32 88 2 Melee 13 | . . . . . . 13 Ram . | . . . . . . . Kick . | . . . . . . . Crush . | . . . . . . . Escape Stasis . | . . . . . . . Rewire . | . . . . . . . Trap . | . . . . . . . Miscellaneous 56 | . 16 1 . 18 21 . Route ------- -11/Scrapyard -10/Materials (discovered 3 exits: *Mat x2 / *Min) -10/Mines (discovered 3 exits: *Mat x2 / *Exi) -10/Exiles -9/Mines (discovered 2 exits: *Mat x2) -8/Materials -7/Factory History --------- Turn | Location | Event 9 | -11/Scrapyard | Upgraded with Propulsion slot (x1) 9 | -11/Scrapyard | Upgraded with Utility slot (x1) 9 | -11/Scrapyard | Upgraded with Weapon slot (x1) 26 | -11/Scrapyard | Discovered new exit (range 15) 42 | -11/Scrapyard | Entered Materials 172 | -10/Materials | Discovered new exit (range 6) 296 | -10/Materials | Discovered new exit (range 5) 310 | -10/Materials | Build established: Mutant 579 | -10/Materials | Discovered new exit (range 12) 585 | -10/Materials | Identified exit to Mines 586 | -10/Materials | Entered Mines 588 | -10/Mines | Reached level 2 674 | -10/Mines | Discovered new exit (range 7) 678 | -10/Mines | Identified exit to Materials 753 | -10/Mines | Discovered new exit (range 12) 758 | -10/Mines | Deemed a non-threat by the Exiles lab entrance 759 | -10/Mines | Discovered exit to Materials (range 10) 760 | -10/Mines | Identified exit to Exiles 760 | -10/Mines | Entered Exiles 779 | -10/Exiles | Met 8R-AWN 788 | -10/Exiles | Met EX-HEX 814 | -10/Exiles | Met EX-DEC 837 | -10/Exiles | Discovered new exit (range 10) 842 | -10/Exiles | Identified exit to Mines 843 | -10/Exiles | Entered Mines 859 | -9/Mines | Build established: Scout 1026 | -9/Mines | Found a hidden stash of uninstalled traps 1045 | -9/Mines | Learned Materials terminal intel 1061 | -9/Mines | Discovered new exit (range 13) 1062 | -9/Mines | Reached level 3 1287 | -9/Mines | Discovered new exit (range 6) 1292 | -9/Mines | Identified exit to Materials 1293 | -9/Mines | Entered Materials 1294 | -8/Materials | Loaded intel: 12 terminal locations 1295 | -8/Materials | Reached level 4 1426 | -8/Materials | Core integrity fell below 50% 1456 | -8/Materials | Lost 3 parts (1p2w) 1472 | -8/Materials | Reached level 5 1533 | -8/Materials | Upgraded with Utility slot (x1) 1534 | -8/Materials | Destroyed 7 combat bots 1729 | -8/Materials | Upgraded with Utility slot (x1) 1761 | -8/Materials | Garrison activated, responded to threat 1775 | -8/Materials | Core integrity fell below 20% 1782 | -8/Materials | Discovered new exit (range 14) 1787 | -8/Materials | Identified exit to Factory 1787 | -8/Materials | Entered Factory 1788 | -7/Factory | Core integrity fell below 50% 1788 | -7/Factory | Core integrity fell below 20% 1789 | -7/Factory | Reached level 6 1843 | -7/Factory | Upgraded with Utility slot (x1) 1916 | -7/Factory | Reached level 7 1958 | -7/Factory | Destroyed by P-60 Hacker with Shock Rifle Last Messages --------------- 01843_ Acquired Maneuvering Thrusters. 01846_ Dropped Lgt. Assault Rifle. 01847_ Acquired Great Axe. 01892_ Destroyed Imp. Hover Unit. 01906_ W-25 Informer sends out distress signal. 01916_ Reached level 7. 01921_ Connecting with Terminal... >>Prototypes Downloading prototype IDs... Exp. Propulsion Shielding Exp. Targeting Computer Scatter Rocket Array >>Traps(Locate) Found 6 traps in 1 array: 6x Proton Bomb Trap Map updated. 01925_ Dropped Cesium-ion Thruster. 01943_ P-60 Hacker Gravmag System severed. 01943_ K-01 Serf cleans the Terminal. 01951_ Destroyed Shock Rifle. Map ----- +----------------------------------------------------+ | #####+####### ]# ??? ??? ?????^^^^?^^???????? | | T" # ?? ????????????????????? | | " + ? ????????????????????? | | # ? ? ? ??#????????????????? | | ############# # ? ? ?????????????????????? | | #####?##?###### ### ???? ? ??????????????????? | | ?? ?### ##? ? ? ?? ??#???????????????? | | ? ? ##?# ### ? ? ?###??????????????? | | """?""? ?#?## ##?#?####?#??##??#???????????????? | | ?""" "?" ?????# #??##?########??##???????????????? | | "???""?? ####+#############?####???????????????? | | ?? ?### = ########???????????????? | | ""? "?" ?#?# ###?#####??????????????? | | ?""" ""?? ### """" """" ###?##### ?????????????? | | ?"" ?""? ?## """" """" ######### ????????????? | | ? ???? ? ### """" """" #########? ????????????? | | ? ? ? ?## """" """" ######### ??????????? | | ? ?? ? ?### """" """" ######### ??????????? | | ???????####### """" """" ######### ?????????? | | ??????###?#?## """" """" ######?##x ? ?????????? | | ??????#?#?#### ######### ????????? | | ?????#?####### ######### ? ????????? | | ????????#?#### ##?###### ?????????? | | ????????###############+#####?####? ?????????? | | ?????????########?## ######## ? ????????? | | ??????????########?# @ ! "???????? | | ?????????? uk " p## ????????? | | ?????????? "T ## ????????? | | ??????????"" k ] ## ? ????????? | | ?????????""" ##### #? ?????????? | | ?????????""" ##?## ## x ? ?????????? | | ??????????"" ############## ?????????? | | ?????????? ? # """ ??" #??# ? ####? ?????????? | | ??????????? ?? """ ""? #### ####????????????? | | ???????????? ? ?"" ?""?#?## ###??#??????????? | | ????????????? # ?###? # ?? ???????????? | | ???????????????+ ? #### ? ????????????? | | ???????????????# ? x+? +? ?????????????? | | ????????????????? ? ? #### ? #???????????????? | | ?????????????????? ?### ?????????????????? | | ?????????????????????##?##### ??????????????????? | | ?????????????????????????#???????????????????????? | | ?????????????????????????????????????????????????? | | ?????????????????????????????????????????????????? | | ?????????????????????????????????????????????????? | | ?????????????????????????????????????????????????? | | ?????????????????????????????????????????????????? | | ?????????????????????????????????????????????????? | | ?????????????????????????????????????????????????? | | ?????????????????????????????????????????????????? | +----------------------------------------------------+ Best States ------------- Heat Dissipation 25 Energy Generation 17 Energy Capacity 265 Matter Stores 300 Matter Capacity 300 Sight Range 16 Robot Scan Range 18 Terrain Scan Range 16 Terrain Scan Density 710 Evasion (%) 68 Targeting Accuracy 6 Offensive Hacking 10 Defensive Hacking 20 Item Schematics ----------------- Adv. Signal Interpreter | -8/Materials | Hacked Robot Schematics ------------------ None Fabricated ------------ Nothing Alien Tech Used ----------------- None Achievements -------------- None Challenges ------------ None RPGLIKE | -11 -10 -10 -10 -9 -8 -7 --------- Run | Scr Mat Min Exi Min Mat Fac Levels Raised 6 | . . 1 . 1 2 2 XP Earned 12225 | 3000 1460 500 200 1625 3580 1860 XP Spent 10000 | 1525 1350 1550 . . 4175 1400 Upgrades 40 | 4 9 13 . . 13 1 Propulsion Slot 1 | 1 . . . . . . Utility Slot 4 | 1 . . . . 2 1 Weapon Slot 1 | 1 . . . . . . Core Integrity 12 | 1 . 6 . . 5 . Energy Generation 1 | . . . . . 1 . Mass Support 1 | . . . . . 1 . Sensor Range 9 | . 9 . . . . . Terrain Scan Density 7 | . . 7 . . . . Hack Attack % 2 | . . . . . 2 . Hack Defense % 2 | . . . . . 2 . Protomatter Created 480 | . 176 . . 150 154 . Integrity Restored 1194 | . 321 24 . 387 462 . Core 1194 | . 321 24 . 387 462 . Protomatter Decayed 90 | . 69 . . 21 . . Game ------ Seed RemoteMicroStreamer Manual? 0 Play Time 00:23:58 Cumulative 95.9 hours Start 2022.03.03 @ 10:14:00 End 2022.03.03 @ 10:35:11 Sessions 1 Manual Loads 0 Difficulty Rogue Special Mode Winter2019/RPGLIKE Game No. 76 Rogue 75 Adventurer 1 Explorer 0 Win Type - Total 7 Types 3/1/0/2/0/1/0/0/0 Lore% 61 Gallery% 72 Achievement% 71 Wizard Run 0 Options --------- ASCII 0 Keyboard 1 Movement Numpad Keybinds 0 Fullscreen 1 Font 18/Terminus Map View 76x50 Tactical HUD 1 Map Filters NONE Filters NONE Steam 1 RUN: 84bd8931-2bf7-4845-9b05-15e4346fe9e9